[Event "Benidorm Open-B 2022"]
[Site "Benidorm"]
[Date "2022.12.08"]
[Round "6.7"]
[White "Dawson, Alastair"]
[Black "Palao, Adriana"]
[Result "0-1"]
[ECO "A15"]
[WhiteElo "1842"]
[BlackElo "1972"]
[Annotator "TA"]
[PlyCount "96"]
[EventDate "2022.12.03"]
[EventType "swiss"]
[EventCountry "ESP"]
[SourceTitle "playchess.com"]
[Source "ChessBase"]
[SourceQuality "1"]
[TimeControl "5400+30"]

{[%evp 16,96,14,0,26,22,25,7,44,44,48,12,3,-4,15,14,22,20,10,0,0,0,14,0,17,18,7,12,32,39,76,62,54,11,18,22,22,10,7,-22,0,-90,-91,-82,-82,-97,-89,-91,-91,-94,-101,-416,-411,-572,-557,-681,-661,-640,-403,-860,-852,-805,-790,-666,-222,-214,-214,-213,-209,-199,-185,-12833,-12833,-12833,-12834,-12843,-12843,-12847,-12836,-12844,-12836,-12845,-12845]} 1. Nf3 Nf6 2. c4 e6 3. e3 b6 4. g3 Bb7 5. Bg2 Be7 6. b3 d5 7. Bb2 Nbd7 8. O-O O-O 9. d3 dxc4 {A14: English Opening: 1...e6 with b3 by White.} 10. bxc4 c5 11. Nc3 Bc6 {[#] The position is equal.} 12. a4 $146 ({Predecessor:} 12. Qe2 Rc8 13. Rfd1 e5 14. Nb5 Bxb5 15. cxb5 Bd6 16. Rac1 Qe7 17. Nd2 Rfe8 18. Nc4 {1-0 (38) Baliuniene,M (1851)-Makackiene,I Kaunas 2015}) 12... Qc7 13. Ne1 Bxg2 14. Nxg2 Rfd8 15. f4 Nb8 {[%cal Bd7b8,Bb8c6,Bc6e5][%mdl 32]} 16. Qe2 Nc6 17. Rfd1 Rd7 18. Ne1 Rad8 19. Rd2 e5 20. fxe5 Nxe5 21. Rad1 Qc6 22. e4 ({Of course not} 22. Nd5 Nxd5 23. Bxe5 Nb4 $15) 22... a6 23. Nd5 Ng6 24. Bc3 b5 25. axb5 axb5 26. cxb5 Qxb5 27. Rb2 (27. Bxf6 {simplifies} Bxf6 28. Nf3 Qc6 29. Rc2) 27... Qc6 (27... Nxd5 {looks sharper.} 28. Rxb5 Nxc3 29. Qb2 Nxd1 30. Qd2 Rd4) 28. Rb6 {[#]} (28. Nxe7+ $11 {remains equal.} Rxe7 29. Nf3) 28... Nxd5 $1 $17 29. Rxc6 Nxc3 30. Qc2 Nxd1 31. Qxd1 Ne5 $1 {[%csl LRc6,LRd3]} 32. Ra6 c4 {[%cal Bc5c4,Bc4d3,Bd3d2][%mdl 32] Black is more active.} 33. Ra2 $2 {[%mdl 8192] White does not recover from this.} (33. Ra5 $17 {is more resistant.} Nxd3 34. Rd5 Rxd5 35. exd5 Rxd5 36. Qf3) 33... cxd3 $19 ({Not} 33... Nxd3 34. Nxd3 cxd3 35. Qd2 $19) 34. Kf1 Nc4 {...Ne3+ is the strong threat.} 35. Ng2 {Against Ne3+} Bf6 {Strongly threatening ...d2.} 36. Kf2 d2 37. Ke2 (37. Nf4 $142) 37... Nb2 38. Rxb2 Bxb2 39. Ne3 Rc7 $2 (39... Rd3 40. Nd5 Rd4) 40. Nd5 Rc4 41. Qxd2 Rxe4+ 42. Kf3 {White threatens Ne7+ and mate.} Rd4 43. Nf6+ $2 (43. Ne7+ Kf8 44. Qxb2 Kxe7 45. Qc2) 43... gxf6 {[%cal Bg7f6,Bf6f5][%mdl 32] Black is clearly winning.} 44. Qxb2 Rd3+ 45. Ke4 Kg7 46. Kf5 R8d5+ 47. Ke4 Rd2 48. Qb4 f5+ {Weighted Error Value: White=0.61/Black=0.25 (precise)} 0-1

[Event "Benidorm Open-B 2022"]
[Site "Benidorm"]
[Date "2022.12.08"]
[Round "6.8"]
[White "Rios Garcia, Miguel"]
[Black "Saber, Anas"]
[Result "1-0"]
[ECO "A00"]
[WhiteElo "1829"]
[BlackElo "1920"]
[Annotator "TA"]
[PlyCount "113"]
[EventDate "2022.12.03"]
[EventType "swiss"]
[EventCountry "ESP"]
[SourceTitle "playchess.com"]
[Source "ChessBase"]
[SourceQuality "1"]
[TimeControl "5400+30"]

{[%evp 9,113,11,35,27,43,19,32,16,20,10,2,0,0,0,16,23,6,-6,-2,0,0,8,25,0,6,0,52,56,68,55,76,77,87,62,122,8,225,225,252,224,221,116,112,-122,-125,-120,-119,-129,-139,-125,-110,-235,-119,-191,-193,-176,-159,-181,-125,-116,0,0,29988,1476,29989,1454,1454,1371,1431,1402,1396,1206,4413,3095,5609,5289,2657,1444,2136,1939,4063,1710,29983,29984,29984,29982,29983,2219,5210,0,29966,29967,5406,6115,29970,29969,6323,5281,1660,1466,29986,29987,29990,29991,29996,29990]} 1. a3 Nf6 2. d4 d5 3. Nf3 Bf5 4. Nh4 Bg4 {[#]} 5. h3 $146 ({Predecessor:} 5. Bf4 e6 6. f3 Bh5 7. g4 Nxg4 8. Bg3 Ne3 9. Qd3 Nc4 10. Qb3 Nb6 11. a4 {0-1 (41) Scholtes,T (1780)-Baskewitsch,P (1955) Luxembourg 1996}) 5... Bh5 6. g4 {Prevents e6. A00: Irregular Openings.} Bg6 7. Nxg6 hxg6 8. Bg2 {[%cal Oc2c4] White is slightly better.} c6 9. Nc3 Nbd7 10. g5 Nh5 11. e4 dxe4 12. Bxe4 e6 {Inhibits d5.} 13. Qe2 Be7 14. h4 Qc7 (14... Qb6 $5 {[%cal Rb6d4]}) 15. Qf3 Bd6 16. Ne2 Nb6 17. b3 Qe7 (17... e5 $11) 18. c4 $14 {Threatens to win with c5.} Bc7 19. a4 {[%cal Ba3a4,Ba4a5,Ba5a6][%mdl 32] Ba3 is the strong threat.} a5 20. Ba3 Qd7 21. Bc5 O-O-O (21... Nc8 $1 $14) 22. b4 ({White should try} 22. Qc3 $16 Na8 23. Kf1) 22... axb4 (22... Nxc4 $2 23. b5 Bd6 24. bxc6 $18) (22... f5 $1 $11 23. gxf6 (23. bxa5 $2 fxe4 24. Qb3 Na8 $19) 23... Nxf6) 23. a5 $18 Nxc4 24. a6 {axb7+ would kill now.} Ba5 (24... bxa6 $2 25. Bxc6 $18) 25. Rxa5 Nxa5 $16 26. Bb6 $2 {White has more active pieces. The black rooks are badly placed.} (26. O-O $1 $16 {stays on course.} Nc4 27. axb7+ Qxb7 28. Bxc6) 26... Nc4 $17 27. Bxd8 Rxd8 28. Qb3 {[%csl LRb4,LRc4]} b5 {[%cal Oh5f4]} 29. Qxb4 Qd6 30. Qb3 (30. Qxd6 $17 Nxd6 31. Bxc6) 30... Kb8 (30... Kc7 $19 {Strongly threatening ...Ra8.} 31. Bd3 Na5) 31. O-O (31. a7+ $17 Kxa7 32. O-O) 31... Nd2 $19 {[%csl LRb3,LRe4,LRf1] Pair of Knights!} 32. a7+ Ka8 $1 (32... Kxa7 $2 33. Ra1+ Kb6 34. Qa2 $18) 33. Qd3 Nxf1 ({Black should play} 33... Nxe4 $1 $19 34. Qxe4 Rd7) 34. Qxb5 $17 {[#]} Kxa7 (34... Rc8 $1 $17 35. Qa6 {[#]} Qc7 $1 36. Kxf1 Qb7) 35. Bxc6 $11 {[%csl Gc6][%cal Rb5b7] Dancing on a razor blade.} (35. Qxc6 $2 Qxc6 36. Bxc6 Nd2 $19) 35... Qe7 {[%mdl 8192] Inhibits Qb7+.} 36. Qa5+ ({Worse is} 36. Kxf1 Qc7 $11) 36... Kb8 37. Qa8+ (37. Nc3 $142 Rxd4 38. Nb5 (38. Kxf1 Qb4 $11) 38... Ra4 39. Qxa4 Qb7 40. Bxb7 Kxb7 41. Nd4 Nf6 42. gxf6) 37... Kc7 $18 38. Qb7+ Kd6 39. Qb4+ (39. Kxf1 $2 {too greedy.} Qxb7 40. Bxb7 Rb8 $19) 39... Kxc6 40. Qxe7 Rb8 41. Kxf1 Rb1+ 42. Kg2 Rb7 43. Qc5+ Kd7 44. Kf3 Rb3+ 45. Ke4 {White wants to mate with d5.} f6 46. Nc3 Rb2 47. Ke3 Rb3 48. Qa7+ (48. d5 $142 fxg5 49. dxe6+ Kxe6 50. Qd5+ Ke7 51. Qxb3 gxh4 52. Qb7+ Ke6 53. Ne4) 48... Kd6 49. Qc5+ Kd7 50. Kd3 Nf4+ 51. Kc4 Rb2 52. Qa7+ Kc6 53. Qa8+ Kd7 54. Qe4 Rxf2 55. Qb7+ {White mates.} Kd8 56. Kc5 Rd2 57. Qb8+ {Quite a comeback for White.   Weighted Error Value: White=0.35/Black=0.57} 1-0

[Event "Benidorm Open-B 2022"]
[Site "Benidorm"]
[Date "2022.12.08"]
[Round "6.9"]
[White "Skielnik, Joseph J"]
[Black "Millward, Kevin P"]
[Result "0-1"]
[ECO "A41"]
[WhiteElo "1797"]
[BlackElo "1928"]
[Annotator "TA"]
[PlyCount "190"]
[EventDate "2022.12.03"]
[EventType "swiss"]
[EventCountry "ESP"]
[SourceTitle "playchess.com"]
[Source "ChessBase"]
[SourceQuality "1"]
[TimeControl "5400+30"]

{[%evp 9,190,1,28,18,37,29,31,29,58,33,26,-64,-61,-47,-59,-70,-80,-86,-87,-102,-94,-149,-110,-104,-83,-106,-104,-172,-191,-176,-149,-284,-277,-277,-275,-253,-218,-420,-454,-457,-470,-436,-472,-456,-450,-437,-429,-425,-428,-396,-331,-450,-387,-453,-394,-424,-423,-467,-317,-425,-399,-425,-429,-439,-431,-424,-372,-414,-396,-416,-347,-443,-354,-417,-435,-409,-409,-424,-409,-409,-409,-419,-409,-409,-409,-405,-404,-425,-421,-597,-597,-722,-552,-576,-539,-1009,-537,-748,-548,-666,-516,-600,0,-608,-595,-583,-582,-569,-562,-656,-650,-724,-708,-29988,-29989,-29989,-893,-1187,-757,-771,-763,-735,0,-729,-734,-828,-672,-654,-581,-668,-862,-960,-460,-768,-762,-696,-635,-600,-548,-691,-714,-695,-639,-633,-563,-1028,-564,-575,0,-1045,-1044,-5181,-3186,-1955,-716,-5289,-1495,-5708,-5708,-29986,-29987,-29990,-29988,-29988,-29986,-29987,-29983,-29981,-3122,-29987,-29988,-29990,-29991,-29991,-3257,-29987,-29988,-29988,-29989,-29989,-29990,-29993,-29994]} 1. d4 d6 2. c4 e5 3. d5 f5 {[%cal Bf7f5,Bf5e4][%mdl 32]} 4. Nc3 Nf6 5. e4 fxe4 6. Nge2 {A41: 1 d4 d6: Tartakower System and Modern Defence.} Bf5 7. Ng3 Bg6 8. Bg5 {White is slightly better.} Be7 {[%cal Of6d5]} 9. Bxf6 gxf6 {[%cal Bg7f6,Bf6f5][%mdl 32]} 10. Ngxe4 (10. h4 $11) 10... f5 $1 $15 11. Nd2 {[#]} Nd7 $146 ({Predecessor:} 11... Bf6 12. Be2 Nd7 13. Bh5 Nc5 14. Bxg6+ hxg6 15. Qc2 Qe7 16. Nb3 Nd7 17. O-O-O b6 {0-1 (98) Urosevic,M (2108)-Petrovic,M (2168) Kac 2008}) 12. Be2 Bg5 13. Nf3 Bf6 14. Rc1 Qe7 15. b4 (15. Nb5 $142 Qd8 16. Nc3) 15... O-O 16. O-O {[%cal Oc4c5]} Qg7 17. Nb5 {[#]} Rfc8 18. Qb3 (18. Ne1 $17) 18... a6 19. Nc3 Kh8 20. Na4 (20. Ne1 $17) 20... Rg8 21. Ne1 e4 22. c5 Ne5 23. b5 $2 (23. cxd6 cxd6 24. Nb6) 23... axb5 24. Bxb5 Be8 25. Bxe8 Nf3+ ({Not} 25... Rgxe8 26. cxd6 cxd6 27. Nb6 $17) (25... Raxe8 $2 26. Qh3 $19) 26. Kh1 Nxe1 {[%csl Ge1,Gg8][%cal Rg7g2]} 27. g3 Nd3 28. Bb5 Nxc1 29. Rxc1 Be5 30. Nc3 dxc5 31. Ne2 b6 {[%cal Of5f4]} 32. Bc6 Raf8 33. f4 Bd6 34. Rg1 Qg4 35. Rg2 h5 36. Qb2+ Rg7 37. Ng1 Qg6 {[%cal Oh5h4]} 38. Nh3 Be7 {Prevents Ng5.} 39. Qe2 Rh7 40. Qe3 Qg7 41. Ng1 Qa1 42. h4 Bf6 43. Qe2 Bd4 44. Kh2 Bxg1+ 45. Rxg1 Qg7 46. Rg2 Rg8 47. a4 Qc3 48. Qa2 Rhg7 {[%cal Rg7g3]} 49. Qf2 (49. Qe2 $142 Rh7 50. Bb7) 49... Kh7 $19 50. Bb5 Qd4 {[%cal Og7g3]} 51. Qe2 {[%cal Re2h5]} Kh6 {aiming for ...Qc3.} (51... Qxd5 $2 52. Qxh5#) 52. Bc4 Rd8 53. Rf2 Qf6 {[%cal Og7g3]} 54. Rg2 Rb8 55. Qf2 Rd8 56. Qe2 c6 57. dxc6 Qxc6 58. Qb2 Rd4 ({Stronger than} 58... Qxa4 59. Qf6+ Kh7 60. Qxf5+ Kh8 61. Qxh5+ Rh7 62. Qg6 $11) 59. Bb5 Qd6 {[%cal Og7g3]} 60. Qb3 Rd2 {...Rxg2+ is the strong threat.} 61. Rxd2 Qxd2+ {KQR-KQB} 62. Kh3 Qd6 (62... Qf2 $142 63. Be8 c4 64. Qc3 Kh7 65. Qxg7+ Kxg7 66. Bxh5 Qg1 67. g4 c3 68. a5 c2 69. gxf5 c1=Q 70. f6+ Kxf6 71. Be2 Qce3+ 72. Bf3 Qxf3#) 63. Bc4 Qg6 64. Be2 Rd7 65. Qb2 {Against Rd2} Rg7 $2 (65... Kh7 $19 {Hoping for ...e3.} 66. Kg2 Qd6) 66. Qc3 $2 {[%mdl 8192] Against e3} (66. Qb3 $11 Qf6 67. Kg2) 66... Qd6 67. Qc4 Kg6 68. Qb5 Rd7 {Threatens to win with ...e3.} 69. Qc4 Qd5 {Against Qg8+. ( -> ...Qxc4)} 70. Qb5 Qe6 (70... e3 $142 {[%cal Rd5h1]} 71. Kh2 Qe6) 71. Bc4 (71. a5 $142 bxa5 72. Qxa5) 71... Qd6 72. Be2 {Inhibits Qd1.} Re7 73. Qc4 Re6 74. Qb5 e3 75. Qc4 Qc6 {[%cal Rc6h1]} 76. Kh2 {Prevents Qh1+.} Qe4 {White must now prevent ...Qxc4.} 77. Qb5 Qd4 {And now ...Kh6 would win.} 78. Kh3 Qe4 (78... Qd5 $142 79. Kh2 Qd2) 79. Kh2 Rd6 {Prevents Qd7.} 80. Qb3 c4 ({Worse is} 80... Rd2 81. Qg8+ Kh6 82. Qh8+ Kg6 83. Qg8+ Kh6 84. Qh8+ Kg6 85. Qg8+ $11) 81. Qb4 Qe6 (81... Qc6 $142 82. Qc3 Rd2 83. Qxe3 c3) 82. Kh3 Qd5 (82... Rd2 $142 83. Bf3 e2 84. Qxd2 e1=Q) 83. Kh2 Qc5 84. Qc3 Rd2 85. Kh3 Rxe2 86. Qh8 Qe7 87. Qg8+ Kf6 88. Qh8+ Ke6 (88... Qg7 $142 89. Qd8+ Ke6 90. Qxb6+ Kd5 91. Qd8+ Ke4 92. Qa8+ Kd3 93. Qd5+ Qd4 94. Qxf5+ Qe4 95. Qxh5 {[#]} Rh2+ $3 {[%mdl 512]} 96. Kxh2 e2 97. Qa5 e1=Q 98. Qxe1 Qxe1 99. Kh3 Ke4 100. Kg4 Qa5 101. Kh3 Kf3 102. f5 Qxf5+ 103. g4 Qxg4+ 104. Kh2 Qg2#) 89. Qxh5 Rd2 90. Qg6+ Kd7 91. Qxb6 Rd6 (91... Qe4 $142 92. Qb5+ Ke7 93. Qc5+ Kf7 94. Qa7+ Kg6 95. h5+ Kh6 96. Qh7+ Kxh7 97. Kh4 Kh6 98. g4 Rh2+ 99. Kg3 Qg2#) 92. Qa7+ Ke8 {Black mates.} 93. Qb8+ Kf7 94. Qh8 e2 95. Qh5+ Kg7 {Weighted Error Value: White=0.60/Black=0.39} 0-1

[Event "Benidorm Open-B 2022"]
[Site "Benidorm"]
[Date "2022.12.08"]
[Round "6.10"]
[White "Lopez de Turiso, Jose Angel"]
[Black "Kane, Robert"]
[Result "1-0"]
[ECO "A00"]
[WhiteElo "1885"]
[BlackElo "1738"]
[Annotator "NA RC COMBH"]
[PlyCount "91"]
[EventDate "2022.12.03"]
[EventType "swiss"]
[EventCountry "ESP"]
[SourceTitle "playchess.com"]
[Source "ChessBase"]
[SourceQuality "1"]
[TimeControl "5400+30"]

1. Nc3 b6 2. e4 Bb7 3. f4 e6 4. Nf3 d5 5. d3 Bb4 6. Bd2 dxe4 7. Nxe4 Bxd2+ 8. Qxd2 Nf6 9. Nxf6+ Qxf6 10. O-O-O Bxf3 11. gxf3 O-O 12. d4 Rd8 13. Qe3 c5 14. Bd3 Nd7 15. Be4 Rab8 16. d5 exd5 17. Rxd5 Nf8 18. Rf5 Qe6 19. Kb1 Rd6 20. Qc3 Rbd8 21. b3 Rd1+ 22. Rxd1 Rxd1+ 23. Kb2 f6 24. Rh5 g6 25. f5 Qd6 26. fxg6 hxg6 27. Rd5 Rxd5 28. Qc4 Nd7 29. Qxd5+ Qxd5 30. Bxd5+ Kg7 31. Kc3 g5 32. Kc4 f5 33. Kb5 Kf6 34. Ka6 Ke5 35. Bb7 Kd4 36. Kxa7 f4 37. Bc8 Ne5 38. Kxb6 g4 39. fxg4 c4 40. bxc4 f3 41. g5 Nxc4+ 42. Kc7 f2 43. Bh3 Kc3 44. g6 Ne5 45. g7 f1=Q 46. Bxf1 1-0

[Event "Benidorm Open-B 2022"]
[Site "Benidorm"]
[Date "2022.12.08"]
[Round "6.11"]
[White "Mateev, Kaloyan Mateev"]
[Black "Izquierdo Carbellido, Pablo"]
[Result "0-1"]
[ECO "C00"]
[WhiteElo "1735"]
[BlackElo "1900"]
[Annotator "TA"]
[PlyCount "108"]
[EventDate "2022.12.03"]
[EventType "swiss"]
[EventCountry "ESP"]
[SourceTitle "playchess.com"]
[Source "ChessBase"]
[SourceQuality "1"]
[TimeControl "5400+30"]

{[%evp 10,108,0,-20,-5,-64,-31,-41,0,-35,0,0,28,-9,12,8,14,2,0,0,10,3,4,7,22,9,23,-13,0,-33,0,0,0,-12,-6,-19,0,-26,-34,-39,0,0,0,0,0,0,8,0,15,21,20,16,16,0,0,0,0,-108,-84,-105,-101,-118,-79,-79,-78,-66,-74,-81,0,0,0,0,0,0,0,0,0,0,64,7,66,0,0,0,0,0,0,0,35,35,35,35,78,78,83,0,0,0,0,0,0]} 1. e4 e6 2. b3 d5 3. Bb2 dxe4 4. Nc3 Nf6 5. Qe2 Be7 6. Nxe4 O-O {C00: French: Unusual White 2nd moves.} 7. g4 {[#]} (7. g3 $11) 7... Bd7 $146 ({Predecessor:} 7... Nxe4 8. Qxe4 Bf6 9. d4 Qd5 10. Bd3 Qxe4+ 11. Bxe4 c6 12. h4 b6 13. f4 Bb7 14. Nf3 {1-0 (55) Benci,R (1637)-Kastler,P (1628) Slovakia 2021}) 8. Bg2 Bc6 {Black is slightly better.} 9. O-O-O Nxe4 10. Bxe4 Bf6 11. d4 Bxe4 (11... a5 {simplifies} 12. a4 Bxe4 13. Qxe4 Nd7) 12. Qxe4 Qd5 13. Qxd5 exd5 14. Nf3 {Prevents Bh4.} Nd7 {[%cal Bb8d7,Bd7f6,Bf6e8,Be8c7,Bc7e6][%mdl 32]} 15. h4 Be7 16. Ne5 Nf6 17. f3 Rad8 18. a3 Bd6 19. Rde1 c6 (19... h5 $5 {[%cal Rh5g4]}) 20. h5 Ne8 21. Re2 Nc7 22. f4 Ne6 23. Rf2 f6 24. Nd3 Rd7 25. Re1 Re7 {[%cal Oe6f4]} 26. Kd1 Rfe8 27. c4 b6 28. Kd2 Nd8 29. Rxe7 Rxe7 30. c5 Bc7 31. a4 Re4 {[%cal Be7e4,Be4f4,Bf4f6,Bf6e6][%mdl 32]} 32. Re2 Kf7 (32... Bxf4+ $2 33. Nxf4 Rxe2+ 34. Nxe2 $18) 33. g5 (33. Rxe4 $11 {keeps the balance.} dxe4 34. cxb6 axb6 35. Nf2) 33... Bxf4+ $17 34. Nxf4 Rxf4 35. gxf6 Rxf6 ({Weaker is} 35... Kxf6 36. Re8 Rf2+ 37. Kc1 Rf1+ 38. Kc2 $11) 36. cxb6 axb6 {[%mdl 4096] Endgame KRB-KRN} 37. b4 Ne6 38. a5 {[#]} bxa5 (38... Nf4 $2 39. axb6 Rd6 40. Rf2 $18) (38... b5 $1 $17) 39. bxa5 $11 Nc7 40. Ba3 Re6 {Prevents Re7+.} 41. Rf2+ Rf6 42. Re2 Re6 {Against Re7+} 43. Rf2+ Ke8 (43... Rf6 $11 44. Re2) 44. Rf8+ $14 Kd7 45. Rf7+ (45. Bc5 $1 $14) 45... Kc8 $11 46. Rxg7 Rh6 47. Kc3 Nb5+ 48. Kb4 {Strongly threatening a6.} Nxd4 49. Bc1 Rxh5 50. a6 {White wants to mate with a7.} Nb5 51. Kc5 {[%cal Oc1e3] aiming for Be3!} Rh2 52. Rg8+ (52. Kxc6 $16 {[%cal Rg7g8]} Nd4+ 53. Kxd5) 52... Kd7 {White must now prevent ...Rc2+. The position is equal.} 53. Rg7+ {[%mdl 64] [#] Deflection} Ke6 {And now ...Rc2+ would win.} 54. Kxc6 Nd6 {[%mdl 32768] Weighted Error Value: White=0.16 (very precise) /Black=0.15 (very precise) . Loss on time!?} 0-1

[Event "Benidorm Open-B 2022"]
[Site "Benidorm"]
[Date "2022.12.08"]
[Round "6.12"]
[White "Gomez Fernandez, Fulgencio"]
[Black "Martin Martin, Luis Vicente"]
[Result "1-0"]
[ECO "D00"]
[WhiteElo "1727"]
[BlackElo "1907"]
[Annotator "TA"]
[PlyCount "63"]
[EventDate "2022.12.03"]
[EventType "swiss"]
[EventCountry "ESP"]
[SourceTitle "playchess.com"]
[Source "ChessBase"]
[SourceQuality "1"]
[TimeControl "5400+30"]

{[%evp 9,63,-1,0,-20,-8,-10,41,41,144,152,163,123,243,243,292,170,165,165,179,171,225,212,204,207,259,235,346,277,253,172,182,127,172,185,162,59,103,75,91,85,178,122,117,119,119,108,275,269,264,250,437,421,465,445,651,650]} 1. d4 d5 2. Bf4 Nf6 3. e3 c5 4. c3 Nc6 5. Nf3 Qb6 6. Na3 {[%cal Bb1a3,Ba3b5,Bb5c7][%mdl 32] Threatens to win with Nb5. D02: 1 d4 d5 2 Nf3 sidelines, including 2...Nf6 3 g3 and 2...Nf6 3 Bf4.} a6 {Inhibits Nb5.} (6... Qxb2 {looks sharper.} 7. Nb5 Ne4 8. Bg3 c4) 7. Qb3 Qxb3 (7... Qd8 $11) 8. axb3 $14 {[%cal Oa3b5] And now Nb5! would win. White is slightly better.} Bf5 ({Better is} 8... Bg4 $1 $14) 9. dxc5 $16 {[#]} e6 $146 ({Predecessor:} 9... Na5 10. Nd4 Bd7 11. b4 Nc6 12. Nxc6 Bxc6 13. Nb5 Rd8 14. Nc7+ Kd7 15. b5 axb5 16. Nxb5 {0-1 (34) Nigro Monasterios,N (1541)-Mejias Veliz,E (2060) Carabobo 2019}) 10. Nb5 Rd8 (10... Kd7 $16) 11. Nc7+ $18 Kd7 {[#]} 12. b4 (12. Nxa6 $142 $1 {[%cal Of1b5][%mdl 512] Bb5! is the strong threat.} Ra8 (12... bxa6 13. Rxa6) 13. Bb5 $1 Rxa6 14. Ne5+ (14. Bxa6 bxa6 15. Rxa6 Bxc5 $18) 14... Kc8 15. Rxa6 (15. Bxa6 Nxe5 16. Bxe5 Nd7 $16) 15... bxa6 16. Bxc6 (16. Bxa6+ Kc7 $16)) 12... Nh5 {[#]} 13. Nxa6 $1 {[%cal Ob4b5][%mdl 512] Strongly threatening b5!} Nxf4 (13... bxa6 14. Rxa6) 14. exf4 {[%cal Of1b5] Hoping for Bb5!} Ra8 (14... bxa6 $142 15. Rxa6 Rb8) 15. b5 bxa6 16. bxc6+ Kxc6 17. b4 (17. Bxa6 Kc7 $14) 17... Be7 (17... Kc7 {was worth a try.} 18. Ra5 (18. Bxa6 Bd3 $11) (18. Rxa6 Be7 $16) 18... Be4) 18. Nd4+ ({Not} 18. Rxa6+ Rxa6 19. Bxa6 Ra8 $14) 18... Kb7 19. Nxf5 exf5 20. Bd3 {Prevents a5.} ({White should play} 20. g3 $18) 20... g6 21. Kd2 a5 22. Rhb1 ({Resist} 22. bxa5 Bxc5 23. Rhb1+ Kc7 $16) (22. Rhe1 $18 Bd8 23. Bb5) 22... Kc7 23. Be2 axb4 24. cxb4 {aiming for Kc2.} Rhb8 {[#]} (24... Bf6 $16 25. Rxa8 Rxa8) 25. Rxa8 (25. Ba6 $1 $18) 25... Rxa8 {[%mdl 4096] Endgame KRB-KRB} 26. Kc3 Ra2 27. Bf3 {Black must now prevent Kb3.} Kc6 $2 {Loses the game.} (27... Bf6+ $16 28. Kb3 Rd2) 28. Kb3 Rd2 {[%cal Oe7f6]} 29. Ra1 Bd8 $2 (29... Rd3+ {was called for.} 30. Kc2 Rc3+ 31. Kb2 Rd3 32. Ra6+ Kb5) 30. Ra6+ {White is clearly winning.} Kb7 31. Rd6 {[%csl LRd5,LRd8]} Bc7 (31... Kc8 $142 32. Bxd5 Rxf2) 32. Rxd5 {Weighted Error Value: White=0.23 (precise) /Black=0.51} 1-0

[Event "Benidorm Open-B 2022"]
[Site "Benidorm"]
[Date "2022.12.08"]
[Round "6.13"]
[White "Prieto, Alberto"]
[Black "Garcia Bueno, Juan Pablo"]
[Result "1-0"]
[ECO "A00"]
[WhiteElo "1886"]
[BlackElo "1788"]
[Annotator "NA RC COMBH"]
[PlyCount "51"]
[EventDate "2022.12.03"]
[EventType "swiss"]
[EventCountry "ESP"]
[SourceTitle "playchess.com"]
[Source "ChessBase"]
[SourceQuality "1"]
[TimeControl "5400+30"]

1. h3 d5 2. d4 Nf6 3. Nf3 g6 4. Bf4 Bg7 5. e3 O-O 6. c4 c5 7. Nc3 cxd4 8. exd4 Nc6 9. c5 b6 10. Bb5 Bb7 11. Qa4 Qc8 12. Ne5 Nxe5 13. dxe5 a6 14. c6 axb5 15. cxb7 Qxb7 16. Qxb5 Ra5 17. Qd3 Nd7 18. b4 Ra3 19. Qd4 Rxc3 20. Qxc3 Rc8 21. Qe3 Nxe5 22. Bxe5 Rc4 23. f3 d4 24. Qd3 Qd5 25. Bxg7 Rc3 26. Qxd4 1-0

[Event "Benidorm Open-B 2022"]
[Site "Benidorm"]
[Date "2022.12.08"]
[Round "6.14"]
[White "Suriya S V"]
[Black "Sanabria Taskila, Jenny Maria"]
[Result "0-1"]
[ECO "C55"]
[WhiteElo "1455"]
[BlackElo "1852"]
[Annotator "NA RC COMBH"]
[PlyCount "110"]
[EventDate "2022.12.03"]
[EventType "swiss"]
[EventCountry "ESP"]
[SourceTitle "playchess.com"]
[Source "ChessBase"]
[SourceQuality "1"]
[TimeControl "5400+30"]

1. e4 e5 2. Nf3 Nc6 3. d4 exd4 4. Bc4 Nf6 5. O-O d6 6. Nxd4 Nxd4 7. Qxd4 Be7 8. Nc3 O-O 9. h3 Be6 10. Nd5 Nxd5 11. exd5 Bf5 12. c3 Bf6 13. Qd1 a6 14. f4 Qd7 15. Bd3 Rae8 16. g4 Be4 17. Bxe4 Rxe4 18. Qd3 Rfe8 19. g5 Bd8 20. Bd2 c6 21. Rf3 Bb6+ 22. Kf1 Qf5 23. dxc6 Qc5 24. Kg2 Qxc6 25. Kg3 d5 26. Rd1 h6 27. Bc1 hxg5 28. fxg5 Bc7+ 29. Rf4 Bxf4+ 30. Bxf4 Re2 31. Qf3 Rxb2 32. Rf1 Rxa2 33. Be5 Qc5 34. Bc7 Qe3 35. Bb6 Qxg5+ $19 ({Stronger than} 35... Qxb6 36. Qxf7+ Kh8 37. Qxe8+ Kh7 38. Qh5+ Kg8 39. Qf7+ Kh7 40. Qh5+ Kg8 41. Qf7+ Kh7 42. Qh5+ $11) 36. Qg4 Qxg4+ 37. hxg4 Ree2 38. Bd4 b5 39. Rf5 Rg2+ 40. Kf3 Rgc2 41. Kf4 Rf2+ 42. Bxf2 Rxf2+ 43. Ke5 Rxf5+ 44. gxf5 a5 45. Kxd5 a4 46. c4 bxc4 47. Kxc4 Kh7 48. Kb4 Kh6 49. f6 g5 50. Kxa4 g4 51. Kb4 g3 52. Kc5 g2 53. Kd6 g1=Q 54. Ke7 Kg6 55. Kf8 Kxf6 0-1

[Event "Benidorm Open-B 2022"]
[Site "Benidorm"]
[Date "2022.12.08"]
[Round "6.15"]
[White "Place, Nicholas"]
[Black "Hellmann, Thomas"]
[Result "1-0"]
[ECO "B00"]
[WhiteElo "1967"]
[BlackElo "1771"]
[Annotator "TA"]
[PlyCount "35"]
[EventDate "2022.12.03"]
[EventType "swiss"]
[EventCountry "ESP"]
[SourceTitle "playchess.com"]
[Source "ChessBase"]
[SourceQuality "1"]
[TimeControl "5400+30"]

{[%evp 10,35,49,36,33,18,37,15,31,33,67,16,21,12,69,7,249,268,247,154,352,358,375,364,553,550,528,516]} 1. e4 d6 2. d4 Nf6 3. Nc3 e5 4. Nf3 exd4 5. Nxd4 Be7 6. Bf4 O-O {C41: Philidor Defence.} 7. Be2 a6 8. Qd3 {[#]} b5 $146 {The position is equal.} ({Predecessor:} 8... Re8 9. O-O-O Nc6 10. Kb1 Nxd4 11. Qxd4 Be6 12. f3 b5 13. Qd2 c5 14. Bxd6 Bxd6 15. Qxd6 {1-0 (75) Debashis,D (2478)-Hedke,F (2266) Bad Wiessee 2016}) 9. a3 Bd7 10. Qg3 ({Better is} 10. Nf5 $14) 10... Re8 11. Bf3 {Threatening 0-0-0.} Ra7 ({Black should play} 11... c5 $11 12. Nf5 Bxf5 13. exf5 Bf8+ 14. Be3 Nbd7) 12. h4 {White has more active pieces. The black rooks are badly placed.} (12. O-O $14) 12... Nc6 $2 (12... c5 $1 $11 {and Black stays safe.} 13. Nb3 b4 14. axb4 cxb4) 13. Nxc6 $18 Bxc6 14. O-O-O $40 {[%mdl 128] [#] Threatens to win with e5. White is out for blood.} Qc8 $2 {This move loses the game for Black.} (14... Qa8 $16 {was necessary.}) 15. e5 dxe5 16. Bh6 {[%csl Gh6][%cal Rg3g7]} ({Weaker is} 16. Bxc6 exf4 17. Qxf4 Rf8 $18) ({Not} 16. Bxe5 Bxf3 17. gxf3 g6 $14) 16... Bf8 (16... Nh5 $142 17. Bxh5 Bf8) 17. Bxc6 Re6 18. Be3 {Weighted Error Value: White=0.25 (precise) /Black=0.65} 1-0